Cogmind - Beta 13 X1 @@@ ROGUE MODE // 2023.07.06 @ 20:55:18 Player: Runia Result: Self-destructed Performance ------------- Evolutions (4) 2000 Regions Visited (10) 2000 Robots Destroyed (144) 720 Value Destroyed (6521) 6521 Prototype IDs (18) 360 Alien Tech Used (0) 0 Bonus (3565) 3565 TOTAL SCORE: 15166 Bonus ------- High Alert Combat Kills 1040 Follower Combat Kills 462 Entered Garrisons 800 Used RIF Installer 1500 Friendly Fire -237 Cogmind --------- Core Integrity 710/850 Matter 300/300 Energy 550/550 System Corruption 3% Temperature Cool (70) Movement Walking (270) Ox2 Location -6/Garrison Parts ------- > --- POWER (2) -------- Light Angular Momentum Engine F-cell Engine > --- PROPULSION (3+1) - Arachnoskeleton Myomer Leg (fused) (+) > --- UTILITY (8) ------ Advanced Coolant Injector Huge Storage Unit Advanced Targeting Computer Quantum Capacitor Relay Coupler [Grunt] (27) Relay Coupler [Sentry] (11) Relay Coupler [Hunter] (10) > --- WEAPON (2) ------- Cooled Particle Cannon Cooled Particle Cannon > --- INVENTORY (25) --- Medium Matter Pod (100) Transmission Jammer Improved Medium Armor Plating Improved Medium Armor Plating Improved Shield Generator Relay Coupler [NC] (33) Relay Coupler [NC] (33) Relay Coupler [Grunt] (25) Relay Coupler [Sentry] (19) Relay Coupler [Sentry] (18) Relay Coupler [Sentry] (20) Relay Coupler [Demolisher] Relay Coupler [Hunter] (13) Trap Extractor (4/4 Hellfire) Improved EM Pulse Cannon HERF Cannon Cooled Particle Cannon Heavy Plasma Cannon Heavy Missile Launcher Power Maul Peak State ------------ > --- POWER ------------ Light Angular Momentum Engine F-cell Engine > --- PROPULSION ------- Arachnoskeleton Myomer Leg Myomer Leg Myomer Leg > --- UTILITY ---------- Advanced Coolant Injector Huge Storage Unit Advanced Targeting Computer Quantum Capacitor Relay Coupler [Grunt] Relay Coupler [Sentry] Relay Coupler [Hunter] > --- WEAPON ----------- Cooled Particle Cannon Cooled Particle Cannon > --- INVENTORY -------- Medium Matter Pod Transmission Jammer Improved Medium Armor Plating Improved Medium Armor Plating Improved Shield Generator Relay Coupler [NC] Relay Coupler [NC] Relay Coupler [Grunt] Relay Coupler [Sentry] Relay Coupler [Sentry] Relay Coupler [Sentry] Relay Coupler [Demolisher] Relay Coupler [Hunter] Trap Extractor Improved EM Pulse Cannon HERF Cannon Cooled Particle Cannon Heavy Plasma Cannon Heavy Missile Launcher Heavy Missile Launcher Power Maul [Rating: 107] Favorites ----------- Power Light Ion Engine Engine Light Ion Engine Power Core Light Nuclear Core Propulsion Armored Treads Treads Armored Treads Leg Myomer Leg Wheel Wheel Utility Huge Storage Unit Device Improved Cooling System Storage Huge Storage Unit Processor Advanced Targeting Computer Hackware Relay Coupler [Grunt] Protection Heavy Armor Plating Weapon Cooled Particle Cannon Energy Gun Precision Beam Rifle Energy Cannon Cooled Particle Cannon Ballistic Gun Light Assault Rifle Launcher Grenade Launcher Special Weapon Remote Datajack Impact Weapon Power Maul Build | -11 -10 -10 -8 -8 -7 -7 -7 -7 -6 -6 ------- Run | Jun Mat Sub Mat Gar Fac Gar Fac Gar Fac Gar Slots Evolved 8 | . . . 4 . 2 . . . 2 . Power 1 | . . . . . . . . . 1 . Propulsion 1 | . . . 1 . . . . . . . Utility 6 | . . . 3 . 2 . . . 1 . Weapon . | . . . . . . . . . . . Parts Attached 171 | 2 11 27 33 9 21 32 6 20 2 8 Power 14 | . . 3 4 1 1 2 . . 2 1 Engine 13 | . . 3 3 1 1 2 . . 2 1 Core 1 | . . . 1 . . . . . . . Reactor . | . . . . . . . . . . . Propulsion 22 | 2 1 4 6 . 2 6 . 1 . . Treads 13 | 2 . 1 6 . 1 3 . . . . Leg 4 | . . . . . . 3 . 1 . . Wheel 5 | . 1 3 . . 1 . . . . . Hover . | . . . . . . . . . . . Flight . | . . . . . . . . . . . Utility 44 | . 3 2 9 1 6 8 2 11 . 2 Device 12 | . 1 1 3 . 2 . . 3 . 2 Storage 3 | . 2 . 1 . . . . . . . Processor 3 | . . . 2 . 1 . . . . . Hackware 15 | . . . . . 2 8 1 4 . . Protection 11 | . . 1 3 1 1 . 1 4 . . Artifact . | . . . . . . . . . . . Weapon 91 | . 7 18 14 7 12 16 4 8 . 5 Energy Gun 12 | . . . 5 4 3 . . . . . Energy Cannon 21 | . . 2 1 . 4 7 1 4 . 2 Ballistic Gun 12 | . 4 4 4 . . . . . . . Ballistic Cannon . | . . . . . . . . . . . Launcher 21 | . 3 6 3 3 2 1 . 1 . 2 Special Weapon 16 | . . . . . 3 7 2 3 . 1 Impact Weapon 9 | . . 6 1 . . 1 1 . . . Slashing Weapon . | . . . . . . . . . . . Piercing Weapon . | . . . . . . . . . . . Special Melee Weapon . | . . . . . . . . . . . Unidentified Prototypes 5 | . . . 2 1 1 . . . 1 . Parts Lost 18 | . . 6 2 . 1 1 1 2 . 5 Power 3 | . . 2 . . . . . . . 1 Propulsion 3 | . . 1 . . . . . . . 2 Utility 8 | . . 2 2 . 1 1 . 2 . . Weapon 4 | . . 1 . . . . 1 . . 2 Highest Loss Streak 3 | . . 2 1 . 1 1 1 1 . 3 To Critical Strikes 1 | . . 1 . . . . . . . . Average Slot Usage (%) 90 | . 94 94 88 89 89 91 81 82 83 82 Engine 8 | . 14 10 5 9 7 6 6 6 11 11 Treads 14 | . 15 14 26 27 10 10 . . . . Leg 4 | . . . . . . 4 18 19 22 18 Wheel 4 | . 12 13 . . 5 2 . . . . Device 7 | . 9 8 10 9 13 2 . 2 5 8 Storage 9 | . 14 14 9 9 7 6 6 6 5 5 Processor 7 | . . . 7 9 15 14 12 6 5 5 Hackware 8 | . . . . . 8 23 21 23 16 16 Protection 4 | . . 5 8 8 3 2 2 5 5 1 Energy Gun 4 | . 3 . 11 17 6 . . . . . Energy Cannon 5 | . . 5 3 . 6 10 6 6 5 8 Ballistic Gun 5 | . 24 11 3 . . . . . . . Impact Weapon 1 | . . 5 . . . 2 5 . . . Naked Turns . | . . . . . . . . . . . Heaviest Build 124 | 11 89 98 110 112 113 116 112 114 123 124 Greatest Support 125 | 40 40 16 60 60 60 100 100 125 125 125 Greatest Overweight (x) 10 | . 8 9 10 1 4 4 1 1 . 2 Average Overweight (x) 3 | . 7 7 1 1 2 2 1 . . . Largest Inventory Capacity 25 | 8 25 25 25 25 25 25 25 25 25 25 Average Capacity 24 | 8 24 25 25 25 25 25 25 25 25 25 Most Carried 25 | 6 21 25 25 25 25 25 25 25 24 25 Average Carried 22 | 5 12 24 24 24 24 24 24 23 23 21 Final Capacity 25 | 8 25 25 25 25 25 25 25 25 25 25 Final Carried 25 | 4 21 25 25 25 25 25 24 24 24 20 Class Distribution -------------------- 50% | Mutant 48% | Bothacker-Mutant Dominant Class ---------------- Mutant | -10/Materials Mutant | -10/Subcaves Mutant | -8/Materials Mutant | -8/Garrison Bothacker-Mutant | -7/Factory Bothacker-Mutant | -7/Garrison Bothacker-Mutant | -7/Factory Bothacker-Mutant | -7/Garrison Bothacker-Mutant | -6/Factory Mutant | -6/Garrison Resources | -11 -10 -10 -8 -8 -7 -7 -7 -7 -6 -6 ----------- Run | Jun Mat Sub Mat Gar Fac Gar Fac Gar Fac Gar Matter Collected 3351 | 200 337 482 484 226 363 560 . 495 . 204 Remotely . | . . . . . . . . . . . Salvage Created 5282 | . 479 500 1156 722 735 439 38 759 . 454 Parts 264 | . 41 30 55 32 28 21 1 39 . 17 Haulers Intercepted 5 | . 2 . 1 . 2 . . . . . Recyclers Shooed 4 | . 2 . 1 . 1 . . . . . Parts Field Recycled . | . . . . . . . . . . . Retrieved Matter . | . . . . . . . . . . . Parts Self-Destructed 10 | . . 10 . . . . . . . . Prevented . | . . . . . . . . . . . Kills | -11 -10 -10 -8 -8 -7 -7 -7 -7 -6 -6 ------- Run | Jun Mat Sub Mat Gar Fac Gar Fac Gar Fac Gar Combat Hostiles Destroyed 119 | . 9 15 22 24 12 10 1 14 . 12 Melee 1 | . . . 1 . . . . . . . Guns 36 | . 7 2 11 12 4 . . . . . Cannons 35 | . . 1 4 . 4 6 1 11 . 8 AOE 45 | . 2 12 5 11 4 4 . 3 . 4 Classes Destroyed 16 | . 9 3 . 1 . 1 . 1 . 1 Worker 4 | . 1 . 1 . 2 . . . . . Builder 2 | . 1 . 1 . . . . . . . Tunneler 1 | . 1 . . . . . . . . . Hauler 5 | . 2 . 1 . 2 . . . . . Recycler 6 | . 1 . 3 . 2 . . . . . Operator 2 | . 1 . 1 . . . . . . . Watcher 4 | . 2 . 1 . 1 . . . . . Swarmer 40 | . 5 . 7 12 5 4 . 3 . 4 Cutter 1 | . . . . . . . . . . 1 Grunt 38 | . 4 2 10 7 4 2 . 4 . 5 Duelist 1 | . . . . . . . . 1 . . Sentry 20 | . . 1 5 3 2 2 . 6 . 1 Hunter 2 | . . . . . . 1 1 . . . Programmer 6 | . . . . 2 1 1 . 1 . 1 Artisan 2 | . . 2 . . . . . . . . Subdweller 12 | . . 12 . . . . . . . . Best Kill Streak 8 | . 3 2 4 6 4 8 1 5 . 7 Combat Bots Only 8 | . 3 2 4 6 4 8 1 5 . 7 Max Kills in Single Turn 4 | . 2 2 4 3 2 2 1 1 . 3 Gunslinging 1 | . . . . 1 . . . . . . Exploded 4 | . 1 2 4 3 2 2 . 1 . 3 Melee 1 | . . . 1 . . . . . . . Uniques/NPCs Destroyed . | . . . . . . . . . . . Combat | -11 -10 -10 -8 -8 -7 -7 -7 -7 -6 -6 -------- Run | Jun Mat Sub Mat Gar Fac Gar Fac Gar Fac Gar Damage Taken 6054 | . 284 754 929 707 677 561 159 889 . 1094 Core 748 | . 65 132 49 45 110 107 . 100 . 140 Absorbed by Shields 228 | . 24 128 56 . . . . 20 . . Core Remaining (%) 64 | 100 . 21 . 82 . . . 54 . . Volleys Fired 463 | . 51 29 67 68 41 44 3 104 . 56 Largest 2 | . 2 2 2 2 2 2 1 2 . 2 Hottest 180 | . 60 85 122 122 180 180 90 120 . 90 Shots Fired 710 | . 96 43 131 126 65 71 3 106 . 69 Gun 339 | . 90 16 89 117 27 . . . . . Cannon 273 | . . 12 39 . 31 55 2 80 . 54 Launcher 49 | . 6 15 3 9 4 4 . 3 . 5 Special 49 | . . . . . 3 12 1 23 . 10 Kinetic 139 | . 77 22 40 . . . . . . . Thermal 475 | . 13 12 89 117 53 55 2 80 . 54 Explosive 42 | . 6 9 2 9 4 4 . 3 . 5 Electromagnetic 5 | . . . . . 5 . . . . . Robot Hit Streak 35 | . 10 23 25 35 17 24 4 9 . 5 Robot Miss Streak 6 | . 6 3 3 2 1 1 . 3 . 3 Penetration Max . | . . . . . . . . . . . Secondary Targets 5 | . 2 . . 3 . . . . . . Max Gunslinging Chain 1 | . 1 . . 1 . . . . . . Capacitor 28 | . . . . . . . . . . 28 Shots Hit Robots 466 | . 51 34 96 87 49 43 4 60 . 42 Core Hits 214 | . 24 24 45 36 26 17 . 23 . 19 Critical Kills . | . . . . . . . . . . . Critical Parts Destroyed 1 | . . . 1 . . . . . . . Critical Strikes 14 | . . . 5 8 1 . . . . . Burn 13 | . . . 4 8 1 . . . . . Smash 1 | . . . 1 . . . . . . . Melee Attacks 46 | . . 23 4 . . 18 1 . . . Impact 46 | . . 23 4 . . 18 1 . . . Slashing . | . . . . . . . . . . . Piercing . | . . . . . . . . . . . Sneak Attacks 2 | . . 2 . . . . . . . . Combat Hostiles . | . . . . . . . . . . . Follow-up Attacks . | . . . . . . . . . . . Damage Inflicted 13660 | . 817 1439 2044 2607 1532 1362 145 1930 . 1784 Guns 3699 | . 584 118 1093 1469 435 . . . . . Cannons 5035 | . . 139 447 . 693 955 108 1546 . 1147 Explosions 4644 | . 233 1048 393 1138 404 407 . 384 . 637 Melee 281 | . . 134 110 . . . 37 . . . Ramming 1 | . . . 1 . . . . . . . Kinetic 1599 | . 484 542 573 . . . . . . . Thermal 7692 | . 100 139 1199 1469 1029 955 108 1546 . 1147 Explosive 3931 | . 233 624 161 1138 347 407 . 384 . 637 Electromagnetic 156 | . . . . . 156 . . . . . Impact 281 | . . 134 110 . . . 37 . . . Slashing . | . . . . . . . . . . . Piercing . | . . . . . . . . . . . Highest Corruption 4 | . . . . 2 1 3 3 4 2 3 Average Corruption 2 | . . . . 1 1 2 3 3 2 2 Corruption Purged . | . . . . . . . . . . . Corruption Blocked . | . . . . . . . . . . . Effects 100 | . . . . 10 1 50 8 22 1 8 Message Errors 31 | . . . . 1 . 18 2 6 1 3 Matter Fused 29 | . . . . 1 . 16 3 8 . 1 Heat Flow Errors 11 | . . . . 2 . 6 . 2 . 1 Energy Discharges 5 | . . . . . . 3 . 1 . 1 Parts Fused 2 | . . . . . . 1 . . . 1 Data Loss (minor) 4 | . . . . 1 . . 1 2 . . Data Loss (major) 11 | . . . . 5 1 3 . 2 . . Misfires 2 | . . . . . . 2 . . . . Alerts 3 | . . . . . . 1 2 . . . Weapon Failures 2 | . . . . . . . . 1 . 1 Overload Shots 32 | . . . . . 2 2 2 20 . 6 Effects 3 | . . . . . . . . 3 . . Energy Bleed 1 | . . . . . . . . 1 . . Heat Surge 2 | . . . . . . . . 2 . . Overflow Damage 281 | . 10 41 47 30 1 32 41 38 . 41 Projectiles 94 | . . . . . . . 41 38 . 15 Explosions 116 | . 10 8 9 30 1 32 . . . 26 Melee 71 | . . 33 38 . . . . . . . Knockbacks 2 | . . 1 . . . . 1 . . . Impact 2 | . . 1 . . . . 1 . . . Kinetic . | . . . . . . . . . . . Secondary . | . . . . . . . . . . . Self-Inflicted Damage 286 | . . 87 . . 12 . . 107 . 80 Shots 10 | . . 4 . . 1 . . 3 . 2 Rammed 1 | . . . 1 . . . . . . . Targets Rammed 1 | . . . 1 . . . . . . . Kicked . | . . . . . . . . . . . Crushed . | . . . . . . . . . . . Highest Temperature 387 | . 4 15 264 192 18 217 84 317 . 387 Average Temperature 83 | . 4 4 58 64 12 80 46 95 . 149 Received Heat Transfer 1595 | . 32 93 378 225 162 123 24 194 . 364 Effects 3 | . . . . . . . . 2 . 1 Interference 2 | . . . . . . . . 2 . . Short Circuit 1 | . . . . . . . . . . 1 Siege Activations . | . . . . . . . . . . . Robots Corrupted . | . . . . . . . . . . . Combat Hostiles . | . . . . . . . . . . . Parts Fried 3 | . . . . . 2 1 . . . . Impact Corruptions 2 | . . 1 1 . . . . . . . Robots Melted 2 | . . . . 2 . . . . . . Combat Hostiles 1 | . . . . 1 . . . . . . Parts Melted 22 | . . 2 4 7 4 2 . 3 . . Heat Transferred 13302 | . 225 296 2849 3700 1741 1234 100 1760 . 1397 Parts Sabotaged . | . . . . . . . . . . . Parts Stolen . | . . . . . . . . . . . Parts Stripped . | . . . . . . . . . . . Power Chain Reactions 1 | . . . . . 1 . . . . . Missiles Intercepted . | . . . . . . . . . . . Alert | -11 -10 -10 -8 -8 -7 -7 -7 -7 -6 -6 ------- Run | Jun Mat Sub Mat Gar Fac Gar Fac Gar Fac Gar Peak Influence 1717 | . 153 . 280 1092 811 1717 952 1255 658 770 Initial 900 | . . . . 61 573 472 900 526 658 460 Average 643 | . 43 . 123 663 671 1144 916 955 658 608 Maximum Alert Level 5 | . . . 1 3 3 5 3 4 2 3 Low Security (%) 31 | 100 100 . 90 12 . . . . . . Level 1 4 | . . . 9 18 . . . . . . Level 2 14 | . . . . 4 57 10 . 14 100 62 Level 3 30 | . . . . 64 42 25 100 46 . 37 Level 4 17 | . . . . . . 56 . 38 . . Level 5 1 | . . . . . . 7 . . . . High Security . | . . . . . . . . . . . Max Security . | . . . . . . . . . . . Squads Dispatched 6 | . 1 . 2 . 2 . 1 . . . Investigation . | . . . . . . . . . . . Extermination 1 | . . . . . 1 . . . . . Reinforcement 4 | . 1 . 2 . 1 . . . . . Assault 1 | . . . . . . . 1 . . . Garrison . | . . . . . . . . . . . Intercept . | . . . . . . . . . . . Searches Triggered . | . . . . . . . . . . . Construction Impeded . | . . . . . . . . . . . Haulers Reinforced 1 | . . . . . 1 . . . . . Active Scanning Responses . | . . . . . . . . . . . Cargo Convoy Interrupts . | . . . . . . . . . . . Stealth | -11 -10 -10 -8 -8 -7 -7 -7 -7 -6 -6 --------- Run | Jun Mat Sub Mat Gar Fac Gar Fac Gar Fac Gar Distress Signals 4 | . . . 4 . . . . . . . Communications Jammed 7 | . . . . . 7 . . . . . Distress Signals 7 | . . . . . 7 . . . . . Times Spotted 185 | . 18 15 37 28 20 18 2 27 . 20 Peak Tracking Total 8 | . 3 2 8 6 4 5 1 7 . 7 Tactical Retreats 10 | . 1 . . 4 1 1 . 1 . 2 Traps | -11 -10 -10 -8 -8 -7 -7 -7 -7 -6 -6 ------- Run | Jun Mat Sub Mat Gar Fac Gar Fac Gar Fac Gar Traps Triggered 14 | . . 2 1 1 . 5 . 4 1 . Indirectly . | . . . . . . . . . . . Trap Hack Attempts . | . . . . . . . . . . . Triggered . | . . . . . . . . . . . Disarmed . | . . . . . . . . . . . Reprogrammed . | . . . . . . . . . . . Reused . | . . . . . . . . . . . Traps Extracted . | . . . . . . . . . . . Installed . | . . . . . . . . . . . Triggered . | . . . . . . . . . . . Most Traps Carried 4 | . . . . . . . . 4 4 4 Machines | -11 -10 -10 -8 -8 -7 -7 -7 -7 -6 -6 ---------- Run | Jun Mat Sub Mat Gar Fac Gar Fac Gar Fac Gar Machines Disabled 26 | . . 1 3 4 1 8 . 8 . 1 Max in Single Turn 1 | . . 1 1 1 1 1 . 1 . 1 Garrison Relay 9 | . . . . 3 . 4 . 2 . . Machines Repaired . | . . . . . . . . . . . Machines Sabotaged . | . . . . . . . . . . . Overloaded Fab Kills . | . . . . . . . . . . . Hacking | -11 -10 -10 -8 -8 -7 -7 -7 -7 -6 -6 --------- Run | Jun Mat Sub Mat Gar Fac Gar Fac Gar Fac Gar Machines Accessed 34 | . 4 2 8 3 6 3 5 2 1 . Terminals 23 | . 4 . 6 3 4 3 1 2 . . Fabricators 2 | . . . . . 1 . 1 . . . Repair Stations . | . . . . . . . . . . . Recycling Units 2 | . . . 1 . . . 1 . . . Scanalyzers 1 | . . . . . . . 1 . . . Garrison Access 4 | . . . 1 . 1 . 1 . 1 . Total Hacks 74 | . 13 3 19 4 8 6 17 3 1 . Successful 36 | . 4 3 9 2 4 1 10 2 1 . Failed 38 | . 9 . 10 2 4 5 7 1 . . Catastrophic 6 | . . . 4 1 . 1 . . . . Database Lockouts . | . . . . . . . . . . . Manual 19 | . 4 . 13 . 2 . . . . . Terminals 53 | . 13 . 17 4 6 6 4 3 . . Fabricators 4 | . . . . . 1 . 3 . . . Repair Stations . | . . . . . . . . . . . Recycling Units 3 | . . . 1 . . . 2 . . . Scanalyzers 7 | . . . . . . . 7 . . . Garrison Access 4 | . . . 1 . 1 . 1 . 1 . Terminal Hacks 21 | . 4 3 6 2 2 1 1 2 . . Record 2 | . . 2 . . . . . . . . Prototype ID Bank 1 | . 1 . . . . . . . . . Open Door 2 | . . . . 1 . 1 . . . . Branch Access Points 1 | . . . 1 . . . . . . . Emergency Access Points 1 | . . . . . . . . 1 . . Alert Level 1 | . . . 1 . . . . . . . Unreport Threat 1 | . . . 1 . . . . . . . Locate Traps 3 | . 1 . 1 . 1 . . . . . Hauler Manifests 2 | . 1 . . . 1 . . . . . Zone Layout 4 | . 1 . 2 . . . 1 . . . Garrison Registry 2 | . . . . 1 . . . 1 . . Derelict Proto ID Bank 1 | . . 1 . . . . . . . . Fabricator Hacks 1 | . . . . . 1 . . . . . Network Status 1 | . . . . . 1 . . . . . Repair Station Hacks . | . . . . . . . . . . . Recycling Unit Hacks 2 | . . . 1 . . . 1 . . . Report Inventory 2 | . . . 1 . . . 1 . . . Scanalyzer 7 | . . . . . . . 7 . . . Insert Component 4 | . . . . . . . 4 . . . Analyze 3 | . . . . . . . 3 . . . Garrison Access Hacks 4 | . . . 1 . 1 . 1 . 1 . Unlock Access 4 | . . . 1 . 1 . 1 . 1 . Unauthorized Hacks 1 | . . . 1 . . . . . . . Terminals 1 | . . . 1 . . . . . . . Operators 1 | . . . 1 . . . . . . . Fabricators . | . . . . . . . . . . . Repair Stations . | . . . . . . . . . . . Recycling Units . | . . . . . . . . . . . Scanalyzers . | . . . . . . . . . . . Garrison Access . | . . . . . . . . . . . Data Cores Recovered . | . . . . . . . . . . . Used . | . . . . . . . . . . . Hacking Detections 24 | . 3 . 7 2 4 2 3 2 1 . Full Trace Events 2 | . 1 . 1 . . . . . . . Feedback Events . | . . . . . . . . . . . Feedback Blocked . | . . . . . . . . . . . Robot Schematics Acquired . | . . . . . . . . . . . Robots Built . | . . . . . . . . . . . Authchips . | . . . . . . . . . . . Time . | . . . . . . . . . . . Total Robot Build Rating . | . . . . . . . . . . . Part Schematics Acquired 3 | . . . . . . . 3 . . . Parts Built . | . . . . . . . . . . . Authchips . | . . . . . . . . . . . Time . | . . . . . . . . . . . Total Part Build Rating . | . . . . . . . . . . . Parts Repaired . | . . . . . . . . . . . Time . | . . . . . . . . . . . Parts Recycled . | . . . . . . . . . . . Recycled Matter . | . . . . . . . . . . . Retrieved Matter . | . . . . . . . . . . . Retrieved Components . | . . . . . . . . . . . Parts Scanalyzed 3 | . . . . . . . 3 . . . Part Schematics Acquired 3 | . . . . . . . 3 . . . Parts Damaged . | . . . . . . . . . . . Bothacking | -11 -10 -10 -8 -8 -7 -7 -7 -7 -6 -6 ------------ Run | Jun Mat Sub Mat Gar Fac Gar Fac Gar Fac Gar Used RIF Installer 3 | . . . . 1 . 1 . 1 . . Hotswap 1 | . . . . . . . . 1 . . Patrol Navigation 1 | . . . . . . 1 . . . . Robots Hacked 30 | . . . . . 2 10 1 14 . 3 Non-combat . | . . . . . . . . . . . Combat 30 | . . . . . 2 10 1 14 . 3 Robot Hacks Applied 35 | . . . . . 2 10 1 17 . 5 scatter_targeting 3 | . . . . . . . . . . 3 disrupt_area 3 | . . . . . . 3 . . . . spike_heat 1 | . . . . . . . . 1 . . overload_power 1 | . . . . . . 1 . . . . amplify_resonance 7 | . . . . . 1 2 . 4 . . wipe_record 13 | . . . . . 1 3 . 8 . 1 disable_weapons 3 | . . . . . . 1 1 . . 1 overwrite_iff 4 | . . . . . . . . 4 . . Relay Couplers Released 40 | . . . . 12 . 16 . 8 . 4 Machine Destruction 36 | . . . . 12 . 16 . 8 . . Programmers 4 | . . . . . . . . . . 4 Attached 14 | . . . . . 2 7 1 4 . . Fabnet Peak Effective % . | . . . . . . . . . . . Robots Rewired . | . . . . . . . . . . . Allies Hacked . | . . . . . . . . . . . Hacks Repelled . | . . . . . . . . . . . Allies | -11 -10 -10 -8 -8 -7 -7 -7 -7 -6 -6 -------- Run | Jun Mat Sub Mat Gar Fac Gar Fac Gar Fac Gar Total Allies 7 | . . . . 2 . 2 . 3 . . Largest Group 2 | . . . . 2 . 2 . 2 . . Highest-Rated Group 51 | . . . . 51 . 51 . 45 . . Highest-Rated Ally 32 | . . . . 31 . 31 . 32 . . Total Orders . | . . . . . . . . . . . Ally Attacks 65 | . . . . 23 . 29 . 13 . . Total Damage 1271 | . . . . 364 . 569 . 338 . . Kills 13 | . . . . 4 . 4 . 5 . . Allies Corrupted . | . . . . . . . . . . . Allies Melted . | . . . . . . . . . . . Intel | -11 -10 -10 -8 -8 -7 -7 -7 -7 -6 -6 ------- Run | Jun Mat Sub Mat Gar Fac Gar Fac Gar Fac Gar Robot Analysis Total . | . . . . . . . . . . . Derelict Logs Recovered 1 | . . 1 . . . . . . . . Drone Launches . | . . . . . . . . . . . Drone Recoveries . | . . . . . . . . . . . Exploration | -11 -10 -10 -8 -8 -7 -7 -7 -7 -6 -6 ------------- Run | Jun Mat Sub Mat Gar Fac Gar Fac Gar Fac Gar Turns Passed 12037 | 3 1410 2044 1653 1568 910 2429 402 1064 217 337 Spaces Moved 5140 | 1 603 951 536 521 445 1097 198 468 190 130 Core . | . . . . . . . . . . . Treads 1500 | 1 53 . 523 521 65 337 . . . . Legs 1323 | . . . . . . 337 198 468 190 130 Wheels 2317 | . 550 951 13 . 380 423 . . . . Hover . | . . . . . . . . . . . Flight . | . . . . . . . . . . . Fastest Speed 112 | 160 160 175 230 250 145 145 186 112 112 112 Average Speed 195 | 160 196 194 249 250 164 192 186 157 112 164 Slowest Speed 330 | 160 200 215 330 250 250 240 186 186 112 270 Overloaded Moves . | . . . . . . . . . . . Propulsion Burnouts . | . . . . . . . . . . . Robots Hopped . | . . . . . . . . . . . Cave-ins Triggered . | . . . . . . . . . . . Exploration Rate (%) 40 | 2 84 62 50 66 15 80 6 55 8 21 Regions Visited 10 Branch Regions 1 Pre-discovered Areas . | . . . . . . . . . . . Known Exits Taken 4 | . . . 1 . 1 . 1 . 1 . Unknown Exits Taken 3 | 1 1 1 . . . . . . . . Scrap Searched 13 | . . 13 . . . . . . . . Spaces Dug 115 | . 8 17 . 10 23 25 . 19 . 13 Terrain Destroyed 469 | . 52 120 15 108 29 56 . 33 . 56 Melee 15 | . . 1 . . . 14 . . . . Projectile 13 | . . . . . 2 2 . 6 . 3 AOE 441 | . 52 119 15 108 27 40 . 27 . 53 Terrain Rammed . | . . . . . . . . . . . Walls Destroyed . | . . . . . . . . . . . Machines Disabled . | . . . . . . . . . . . Actions | -11 -10 -10 -8 -8 -7 -7 -7 -7 -6 -6 --------- Run | Jun Mat Sub Mat Gar Fac Gar Fac Gar Fac Gar Total 6375 | 4 735 1058 722 667 558 1315 225 691 194 206 Wait 348 | . 51 17 35 40 21 74 17 82 . 11 Move 5132 | . 602 950 535 520 445 1096 197 467 190 130 Hop . | . . . . . . . . . . . Pick Up 89 | . 17 7 17 14 14 11 1 7 1 . Fast Attach 34 | . 4 2 14 2 5 4 . 1 1 1 Attach 24 | 2 . 4 5 . 3 2 1 2 1 4 Detach 2 | . . . 1 . . . . . . 1 Swap 113 | . 7 21 14 7 13 26 5 17 . 3 Drop 88 | 2 3 5 29 16 16 14 . 2 1 . Fire 463 | . 51 29 67 68 41 44 3 104 . 56 Melee 46 | . . 23 4 . . 18 1 . . . Ram . | . . . . . . . . . . . Kick . | . . . . . . . . . . . Crush 1 | . . . 1 . . . . . . . Escape Stasis 35 | . . . . . . 26 . 9 . . Rewire . | . . . . . . . . . . . Trap . | . . . . . . . . . . . Miscellaneous . | . . . . . . . . . . . Route ------- -11/Junkyard -10/Materials (discovered 6 exits: [*Mat x3] / [*Min x2] / *Sub) -10/Subcaves -8/Materials -8/Garrison (discovered 3 exits: *Fac x3) -7/Factory (discovered 2 exits: *Sto / Gar) -7/Garrison (discovered 3 exits: *Fac x3) -7/Factory (discovered 2 exits: *Fac / Gar) -7/Garrison (discovered 3 exits: *Fac x3) -6/Factory -6/Garrison History --------- Turn | Location | Event 4 | -11/Junkyard | Discovered new exit (range 0) 4 | -11/Junkyard | Entered Materials 56 | -10/Materials | Discovered new exit (range 15) 131 | -10/Materials | Discovered new exit (range 11) 307 | -10/Materials | Build established: Mutant 369 | -10/Materials | Discovered new exit (range 12) 951 | -10/Materials | Discovered new exit (range 5) 1149 | -10/Materials | Discovered new exit (range 14) 1398 | -10/Materials | Discovered new exit (range 8) 1414 | -10/Materials | Entered Subcaves 1415 | -10/Subcaves | Ambushed by Subdwellers from Twisted Machinery 1435 | -10/Subcaves | Discovered new exit (range 8) 1503 | -10/Subcaves | Visited Clippyterm 1611 | -10/Subcaves | Ambushed by angry Subdweller bent on revenge 1738 | -10/Subcaves | Visited 4L-MR0's lab 1762 | -10/Subcaves | Found Arachnoskeleton 1892 | -10/Subcaves | Core integrity fell below 50% 2233 | -10/Subcaves | Shifting Twisted Machinery released Battle Rifle 2247 | -10/Subcaves | Shifting Twisted Machinery released Piercing Trap 2311 | -10/Subcaves | A swath of the cavern ceiling suddenly collapsed 2327 | -10/Subcaves | A swath of the cavern ceiling suddenly collapsed 2487 | -10/Subcaves | Disturbed a concealed Subdweller 2497 | -10/Subcaves | Disturbed a concealed Subdweller 3283 | -10/Subcaves | Shifting Twisted Machinery released Mak. Armor Plating 3285 | -10/Subcaves | Shifting Twisted Machinery released Battle Cannon 3458 | -10/Subcaves | Entered Materials 3458 | -8/Materials | Evolved 4 slots: Propulsion x1, Utility x3 5053 | -8/Materials | Identified exit to Garrison 5111 | -8/Materials | Entered Garrison 5180 | -8/Garrison | Triggered checkpoint 5245 | -8/Garrison | Garrison Relay disabled 5264 | -8/Garrison | Triggered checkpoint 5345 | -8/Garrison | Discovered new exit (range 84) 5345 | -8/Garrison | Discovered new exit (range 82) 5345 | -8/Garrison | Discovered new exit (range 44) 5455 | -8/Garrison | Rescued a captive Derelict 5456 | -8/Garrison | Rescued a captive Derelict 5554 | -8/Garrison | Triggered checkpoint 5554 | -8/Garrison | Triggered checkpoint 5590 | -8/Garrison | Triggered checkpoint 5868 | -8/Garrison | Installed Relay Interface Framework 5904 | -8/Garrison | Triggered checkpoint 6026 | -8/Garrison | Garrison Relay disabled 6039 | -8/Garrison | Garrison Relay disabled 6204 | -8/Garrison | Triggered checkpoint 6389 | -8/Garrison | Build established: Bothacker-Mutant 6679 | -8/Garrison | Entered Factory 6679 | -7/Factory | Evolved 2 slots: Utility x2 6680 | -7/Factory | Identified exit to Storage 7589 | -7/Factory | Identified exit to Garrison 7589 | -7/Factory | Entered Garrison 7626 | -7/Garrison | Triggered checkpoint 7664 | -7/Garrison | Garrison Relay disabled 7742 | -7/Garrison | Triggered checkpoint 7847 | -7/Garrison | Triggered checkpoint 7860 | -7/Garrison | Triggered checkpoint 7887 | -7/Garrison | Triggered checkpoint 7916 | -7/Garrison | Destroyed 8 combat bots 8022 | -7/Garrison | Discovered new exit (range 11) 8036 | -7/Garrison | Rescued a captive Derelict 8037 | -7/Garrison | Rescued a captive Derelict 8074 | -7/Garrison | Triggered checkpoint 8157 | -7/Garrison | Garrison Relay disabled 8335 | -7/Garrison | Discovered new exit (range 10) 8352 | -7/Garrison | Expanded RIF knowledge: Patrol Navigation 8410 | -7/Garrison | Spotted B-75 Beast 8440 | -7/Garrison | Allies destroyed B-75 Beast 8462 | -7/Garrison | Triggered checkpoint 8514 | -7/Garrison | Garrison Relay disabled 8950 | -7/Garrison | Discovered new exit (range 12) 9352 | -7/Garrison | Attached Arachnoskeleton, gained temporary slots: Propulsion x3 9403 | -7/Garrison | Found Quantum Capacitor 9646 | -7/Garrison | Garrison Relay disabled 10018 | -7/Garrison | Entered Factory 10072 | -7/Factory | Discovered new exit (range 7) 10399 | -7/Factory | Identified exit to Garrison 10418 | -7/Factory | First assault squad dispatched 10420 | -7/Factory | Entered Garrison 10550 | -7/Garrison | Triggered checkpoint 10608 | -7/Garrison | Triggered checkpoint 10748 | -7/Garrison | Triggered checkpoint 10762 | -7/Garrison | Garrison Relay disabled 10822 | -7/Garrison | Discovered new exit (range 13) 10865 | -7/Garrison | Discovered new exit (range 83) 10865 | -7/Garrison | Discovered new exit (range 18) 10865 | -7/Garrison | Discovered new exit (range 51) 11011 | -7/Garrison | Triggered checkpoint 11070 | -7/Garrison | Garrison Relay disabled 11311 | -7/Garrison | Triggered checkpoint 11340 | -7/Garrison | Expanded RIF knowledge: Hotswap 11484 | -7/Garrison | Entered Factory 11484 | -6/Factory | Evolved 2 slots: Power x1, Utility x1 11701 | -6/Factory | Identified exit to Garrison 11701 | -6/Factory | Entered Garrison 11774 | -6/Garrison | Triggered checkpoint 11907 | -6/Garrison | Triggered checkpoint 11955 | -6/Garrison | Destroyed 7 combat bots 11964 | -6/Garrison | Lost 3 parts (2n1w) 12038 | -6/Garrison | Self-destructed Last Messages --------------- 11907_ Garrison Door breached. 11907_ Beams of light sweep through the air. An alarm sounds. 11907_ S-27 Virus destroyed. 11911_ The unstable cave ceiling collapses. 11913_ Hvy. Missile Launcher destroyed. 11919_ G-50 Soldier destroyed. 11923_ System corrupted: Matter fused (-9). 11925_ The unstable cave ceiling collapses. 11933_ Myomer Leg destroyed. 11934_ Temporary Propulsion slot lost. 11934_ G-50 Soldier destroyed. 11936_ The unstable cave ceiling collapses. 11942_ Acquired 10 matter. 11945_ Acquired 44 matter. 11953_ The unstable cave ceiling collapses. 11953_ Lgt. Treads crushed. 11956_ Acquired 2 matter. 11959_ The unstable cave ceiling collapses. 12001_ System corrupted: Broken Myomer Leg fused. 12031_ Critical hit (Burn: +50). Map ----- +----------------------------------------------------+ | ?????????????????????????????????????????????????? | | ?????????????????????????????????????????????????? | | ?????????????????????????????????????????????????? | | ?????????????????????????????????????????????????? | | ?????????????????????????????????????????????????? | | ?????????????????????????????????????????????????? | | ?????????????????????????????????????????????????? | | ?????????????????????????????????????????????????? | | ?????????????????????????????????????????????????? | | ?????????????????????????????????????????????????? | | ?????????????????????????????????????????????????? | | ?????????????????????????????????????????????????? | | ?????????????????????????????????????????????????? | | ?????????????????????????????????????????????????? | | ?????????????????????????#???????????????????????? | | ????????????????????????? ???????????????????????? | | ??? ?????????????????????g???????????????????????? | | ??# ???????????????????# #??????????????????????? | | ??# #??????????????#???# #??????????????????????? | | ??" #??????????????? ??# #??????????????????????? | | ??" #??????####?????+### #??????????????????????? | | ??" #??????# ??????g ??????????????????????? | | ??# #??????# ??????? ??????????????????????? | | ??# #??????# #???????#g #??????????????????????? | | ### #??????# #???????# #??????????????????????? | | ? #??????# #???????# @#??????????????????????? | | ?# ##?????# #???????# #??????????????????????? | | ## ####### #???????# #??????????????????????? | | # # ## #???????# #??????????????????????? | | ## ## ## ##??????# #??????????????????????? | | # % ######## #??????????????????????? | | ! =%[ #??????????????????????? | | = [=% #??????????????????????? | | ## # ## ###########??????????????????????? | | ## # ## #????????????????????????????????? | | "????????????????????????????????? | | "????????????????????????????????? | | "????????????????????????????????? | | "????????????????????????????????? | | ## ## ## #????????????????????????????????? | | ?# ##^ ^ ## #????????????????????????????????? | | ?# ????????????????????????????????? | | ?# ???????????????????????????????? | | ?# ???????????????????????????????? | | ?# ##""""#######???????????????????????????????? | | ?# #???????????????????????????????????????????? | | ?# #???????????????????????????????????????????? | | ?? ????????????????????????????????????????????? | | ?????????????????????????????????????????????????? | | ?????????????????????????????????????????????????? | +----------------------------------------------------+ Best States ------------- Heat Dissipation 61 Coolant Potential 100 Energy Generation 32 Energy Capacity 690 Matter Stores 300 Matter Capacity 300 Sight Range 16 Terrain Scan Density 10 Jamming Range 12 Armor Coverage 800 Evasion (%) 55 Targeting Accuracy 8 Recoil Reduction 3 Offensive Hacking 10 Relay Coupler Types 4 Relay Coupler Value 80 Trap Extractor Capacity 4 Item Schematics ----------------- Quantum Capacitor | -7/Factory | Scanalyzed Remote Datajack | -7/Factory | Scanalyzed Transmission Jammer | -7/Factory | Scanalyzed Robot Schematics ------------------ None Fabricated ------------ Nothing Alien Tech Used ----------------- None Achievements -------------- None Challenges ------------ None Game ------ Seed UltimateMagneticShockpuncher Manual? 0 Play Time 01:09:18 Cumulative 799.4 hours Start 2023.07.06 @ 19:44:46 End 2023.07.06 @ 20:55:18 Sessions 1 Manual Loads 0 Difficulty Rogue Special Mode None Game No. 693 Rogue 693 Adventurer 0 Explorer 0 Win Type - Total 38 Types 14/6/7/1/1/1/6/1/1 Lore% 92 Gallery% 96 Achievement% 81 Wizard Run 0 Options --------- ASCII 0 Keyboard 0 Movement Mouse Keybinds 1 Fullscreen 2 Font 24/Smallcaps Map View 76x50 Tactical HUD 1 Map Filters NONE Filters NONE Steam 1 RUN: 86831b65-7a54-4db0-9c6a-2fec0137d9e7